Workbook

Sheet 提出物一覧表
B2: 提出物一覧表
B3: ※令和９年３月の書類提出時に、チェックリストとして御活用ください。
B4: チェック | C4: 提出物 | D4: 説明
C5: 地区交付金出納帳
C6: 地区活動実績及び地区交付金精算報告書 | D6: 枠外は要記入
C7: 支出を証明する書類（領収書等） | D7: ・コピーでも可 ・品目の記載必要（総額のみや「お品代」のみは不可） ・講師謝金は実施時間を補記
C8: 旅費支払明細書兼受領書
C9: 自販機で購入した品目 | D9: 該当のある場合のみ
C10: 交付金残額の区会長口座への入金が分かる書類 （通帳の当該入金に係る部分又は払込用紙のコピー） | D10: 交付金に残額が 発生した場合のみ
C11: 活動報告Ａ
C12: 活動報告Ｂ

Sheet 出納帳
D1: 令和８年度
A2: 保健活動推進員会地区交付金出納帳
A3: 地区名
D4: （ ）枚目／（ ）枚中
A5: 活動日 （支出日） | B5: 費目 | D5: 収入金額 | E5: 支出金額 | F5: 差引金額
B6: 行事名（活動内容） | C6: 領収書No
A21: 合 計 ・ 小 計 | F21: （差引残高）

Sheet 【シート１】地区精算報告書
A1: 瀬谷区保健活動推進員会 会長
AN2: 地区保健活動推進員会 会長
A4: 令和８年度保健活動推進員会地区活動実績及び地区交付金精算報告書
G5: 交付金額 | N5: 円 | O5: 支出金額 | AC5: 円 | AE5: 残額 | AN5: 円 | AP5: （ １ ）枚目／（ １ ）枚中
A7: 活動実績 | AF7: 交付金精算報告
A8: 活動日 | D8: 行事名（活動内容）・実施場所 | I8: 研 修 | P8: 会 議 | W8: 事 業 | AF8: 支出内訳 | AR8: 領収書 № | AV8: 支出金額 | BC8: 差引金額 （任意記載）
I9: 回数 | N9: 延出席者数 （保活のみ） | P9: 回数 | U9: 延出席者数 （保活のみ） | W9: 回数 | AB9: 延出席者数 （保活のみ） | AD9: 参加者数
D10: 行事名 会場・場所
D12: 行事名 会場・場所
D14: 行事名 会場・場所
D16: 行事名 会場・場所
D18: 行事名 会場・場所
D20: 行事名 会場・場所
D22: 行事名 会場・場所
D24: 行事名 会場・場所
A26: 小 計 ・ 合 計 | AF26: 支出合計額 及び 残額

Sheet 【シート２】旅費
A1: 令和８年度旅費支払明細書兼受領書
I2: 地区保健活動推進員会
D3: （ ）枚目／（ ）枚中
A4: 領収書 № | B4: 日付 | C4: 行事名（活動内容）・実施場所 | D4: 推進員氏名 または人数 | E4: 支払金額 | F4: 備考（経路等） | G4: 受領印又はサイン

Sheet 【シート３】自販機
B1: 自動販売機で購入した品目
A3: 領収書 № | B3: 購入日 | C3: 品目・数量 | D3: 金 額 | E3: 自動販売機を使用した理由 | F3: 備 考
E4: （ex.近くにｺﾝﾋﾞﾆ等がなかった。急を要していたなど。） | F4: （用途を記載してください。また、会議用の飲料等の場合は、会議の出席者名を記載してください。）

Sheet 【コピー用紙等で代用可】領収書貼付シート
B1: 【領収書貼付シート】
E2: 地区 | F2: Ｎｏ． | Q2: （ ）枚目／（ ）枚中

Sheet 出納帳記載例【瀬谷区版】
A1: 【出納帳作成例】 | D1: 令和○年度
A2: 保健活動推進員会地区交付金出納帳
A3: 地区名 | B3: A
D4: （ １ ）枚目／（ １ ）枚中
A5: 活動日 （支出日） | B5: 費目 | D5: 収入金額 | E5: 支出金額 | F5: 差引金額
B6: 行事名（活動内容） | C6: 領収書No
A7: 2015-04-17 | B7: 令和〇年度地区交付金 | D7: 50000 | F7: =D7-E7 -> 50000
A8: 2024-04-04 | B8: 地区定例会（4/5実施分）コピー代 | C8: 1-1 | E8: 350 | F8: =F7+D8-E8 -> 49650
A9: 2024-04-04 | B9: 地区定例会（4/5実施分）お茶代 | C9: 1-2 | E9: 1016 | F9: =F8+D9-E9 -> 48634
A10: 2024-05-23 | B10: 正副会長会交通費 | C10: 2-4 | E10: 840 | F10: =F8+D10-E10 -> 48810
A11: 2024-07-15 | B11: 地区定例会コピー代 | C11: 1-3 | E11: 800 | F11: =F10+D11-E11 -> 48010
A12: 2024-07-15 | B12: 地区定例会お茶代 | C12: 1-4 | E12: 1050 | F12: =F11+D12-E12 -> 46960
A13: 2024-07-26 | B13: 正副会長会（7/23実施分）交通費 | C13: 2-5 | E13: 840 | F13: =F11+D13-E13 -> 47170
A14: 2024-08-31 | B14: 市全体研修会交通費 | C14: 2-1 | E14: 3520 | F14: =F13+D14-E14 -> 43650
A15: 2024-09-17 | B15: 正副会長会交通費 | C15: 2-6 | E15: 840 | F15: =F14+D15-E15 -> 42810
A16: 2024-10-12 | B16: 地区定例会コピー代 | C16: 1-5 | E16: 1200 | F16: =F18+D16-E16 -> 44670
A17: 2024-10-12 | B17: 地区定例会お茶代 | C17: 1-6 | E17: 685 | F17: =F13+D17-E17 -> 46485
A18: 2024-10-20 | B18: □□ウォーキング下見編交通費 | C18: 2-2 | E18: 2940 | F18: =F10+D18-E18 -> 45870
A19: 2024-10-31 | B19: □□ウォーキング実践編交通費 | C19: 2-3 | E19: 2100 | F19: =F16+D19-E19 -> 42570
A20: 2024-10-31 | B20: □□ウォーキング実践編お茶代 | C20: 3-1 | E20: 650 | F20: =F18+D20-E20 -> 45220
A21: 2024-11-30 | B21: 正副会長会（11/21実施分）交通費 | C21: 2-7 | E21: 840 | F21: =F19+D21-E21 -> 41730
A22: 2024-01-10 | B22: 地区定例会（1/14実施分）コピー代 | C22: 1-7 | E22: 500 | F22: =F21+D22-E22 -> 41230
A23: 2024-01-12 | B23: 地区定例会（1/14実施分）お茶代 | C23: 1-8 | E23: 1050 | F23: =F22+D23-E23 -> 40180
A24: 2024-01-31 | B24: 正副会長会交通費 | C24: 2-8 | E24: 840 | F24: =F22+D24-E24 -> 40390
A25: 2024-03-17 | B25: 地区定例会コピー代 | C25: 1-9 | E25: 1200 | F25: =F24+D25-E25 -> 39190
A26: 2024-03-17 | B26: 地区定例会お茶代 | C26: 1-10 | E26: 1050 | F26: =F25+D26-E26 -> 38140
A27: 2024-03-30 | B27: 正副会長会（3/26実施分）交通費 | C27: 2-9 | E27: 840 | F27: =F26+D27-E27 -> 37300
A28: 合 計 ・ 小 計 | D28: =SUM(D7:D27) -> 50000 | E28: =SUM(E7:E27) -> 23151 | F28: 26,934（差引残高）

Sheet 【記入例シート１】地区精算報告書【瀬谷区版】
A1: 瀬谷区保健活動推進員会 会長
AN2: 地区保健活動推進員会 会長
A4: 令和８年度保健活動推進員会地区活動実績及び地区交付金精算報告書
G5: 交付金額 | N5: 円 | O5: 支出金額 | AC5: 円 | AE5: 残額 | AN5: 円 | AP5: （ １ ）枚目／（ １ ）枚中
A7: 活動実績 | AF7: 交付金精算報告
A8: 活動日 | D8: 行事名（活動内容）・実施場所 | I8: 研 修 | P8: 会 議 | W8: 事 業 | AF8: 支出内訳 | AR8: 領収書 № | AV8: 支出金額 | BC8: 差引金額 （任意記載）
I9: 回数 | N9: 延出席者数 （保活のみ） | P9: 回数 | U9: 延出席者数 （保活のみ） | W9: 回数 | AB9: 延出席者数 （保活のみ） | AD9: 参加者数
D10: 行事名 会場・場所
D12: 行事名 会場・場所
D14: 行事名 会場・場所
D16: 行事名 会場・場所
D18: 行事名 会場・場所
D20: 行事名 会場・場所
D22: 行事名 会場・場所
D24: 行事名 会場・場所
A26: 小 計 ・ 合 計 | AF26: 支出合計額 及び 残額

Sheet 領収書記載例 【瀬谷区版】
B2: 【領収書貼付シート作成例】
B3: A 地区 Ｎｏ．1 | J3: （ １ ）枚目／（ １ ）枚中
B4: 【注意事項】 ・必ず領収書１枚で、品目、数量、単価、日付等概要がわかる明細（レシート等）を 添付してください。（総額のみ、またはお品代のみ記載の領収書は不可。）
B5: ・レシート・領収書は原本またはコピーを添付 ・修正液の使用ＮＧ→二重線で訂正し、上部に正しい内容を記載。 ・鉛筆書きＮＧ ・消えるボールペンＮＧ
B8: ⑥事務用品
F10: 領 収 書
J11: No. | K11: ××
C12: A地区保健活動推進員会 | F12: 様 | J12: ○○年○月○日
D14: ★ | E14: 4200 | K14: 収入 印紙
D16: 但 | E16: バインダーファイル40冊、A4用紙500枚×2箱
D18: 上記正に領収いたしました | H18: 株式会社 ○○○
C20: 内 訳 | H20: 〒999-×××× 横浜市○○町１－×
C21: 税抜金額 | D21: 4000 | H21: Tel・Fax（045）999-××××
C22: 消費税額（ ％） | D22: 200
B26: ⑦事務用品 | F26: ⑧定例会上期お茶代 | J26: ⑨定例会下期お茶代
B27: ○○スーパーｘｘ店 TEL 045-xxx-0000 領 収 書 ○○年△月１日 ノート \100 10冊 \ 1,000 マジック \100 10本 \ 1,000 小計 \ 2,000 消費税 \100 合計 \ 2,100 | F27: ○○商店 TEL 045-xxx-0000 領 収 書 ○○年◎月10日 缶茶 \100 50本 \ 5,000 合計 \ 5,000 (うち消費税\238) | J27: ○○商店 TEL 045-xxx-0000 領 収 書 ○○年★月10日 缶茶 \100 50本 \ 5,000 合計 \ 5,000 (うち消費税\238)
B41: ⑦連絡用切手代 | F41: ⑭区民講演会チラシコピー代 | J41: ⑮区民講演会資料コピー代
B42: ○○郵便局 TEL 045-xxx-0000 領 収 書 ○○年△月1日 【販売】 80円切手 10枚 \800 課税計 \800 | F42: ○○システムサービス TEL 045-xxx-0000 ○○年△月10日 領 収 書 複写機利用料金として以下のとおり領収しました。 カラーコピー ご利用枚数 30枚 2,400円 合計(税込) 2,400円 | J42: ○○システムサービス TEL 045-xxx-0000 ○○年△月10日 領 収 書 複写機利用料金として以下のとおり領収しました。 白黒コピー ご利用枚数 100枚 1,000円 合計(税込) 1,000円

Sheet 【記入例シート２】旅費【瀬谷区版】
B1: 令和〇年度 旅費支払明細書兼受領書
B2: 作成例 | D2: （ Ａ ）地区保健活動推進員会
D3: （ １ ）枚目／（ １ ）枚中
A4: 領収書 № | B4: 日付 | C4: 行事名（活動内容）・実施場所 | D4: 推進員氏名 または人数 | E4: 支払金額 | F4: 備考（経路等） | G4: 受領印又はサイン
B6: 6/5 | C6: 健康機器取り扱い研修会 ○区役所 | D6: 鶴見 一郎 | E6: 2,100 | F6: バス:市庁舎前～パシフィコ横浜 @210円×2×5人=2,100円 | G6: 鶴見
A7: 2-1 | B7: 8/31 | C7: 横浜市全体研修会 関内ホール | D7: ４名 | E7: 3,520 | F7: バス:■■～○● @210円×2×4人=1,680円 地下鉄:蒔田～関内 @230円×2×4人=1,840円 | G7: 横浜 | H7: 保 土 | I7: 旭 | J7: 磯子
A8: 2-2 | B8: 10/20 | C8: □□ウォーキング 下見編 ××町～△△町 | D8: ７名 | E8: 2940 | F8: バス:△▲～▲● @210円×2×７人=2,940円 | G8: 金沢 | H8: 港北 | I8: 緑 | J8: 青葉 | K8: 都筑
A10: 2-3 | B10: 10/31 | C10: □□ウォーキング 実践編 ××町～△△町 | D10: ５名 | E10: 2100 | F10: バス:△▲～▲● @210円×2×5人=2,100円 | G10: 金沢 | H10: 港北 | I10: 緑 | J10: 青葉 | K10: 都筑
A11: 2-4 | B11: 5/23 | C11: 正副会長会議 | D11: 緑 太郎 青葉 花子 | E11: 840 | F11: バス:□■～▲○ @210円×2×2人×=840円 | G11: 緑 | H11: 青葉
A12: 2-5 | B12: 7/23 | C12: 正副会長会議 | D12: 緑 太郎 青葉 花子 | E12: 840 | F12: バス:□■～▲○ @210円×2×2人×=840円 | G12: 緑 | H12: 青葉
A13: 2-6 | B13: 9/17 | C13: 正副会長会議 | D13: 緑 太郎 青葉 花子 | E13: 840 | F13: バス:□■～▲○ @210円×2×2人×=840円 | G13: 緑 | H13: 青葉
A14: 2-7 | B14: 11/21 | C14: 正副会長会議 | D14: 緑 太郎 青葉 花子 | E14: 840 | F14: バス:□■～▲○ @210円×2×2人×=840円 | G14: 緑 | H14: 青葉
A15: 2-8 | B15: 1/31 | C15: 正副会長会議 | D15: 緑 太郎 青葉 花子 | E15: 840 | F15: バス:□■～▲○ @210円×2×2人×=840円 | G15: 緑 | H15: 青葉
A16: 2-9 | B16: 3/26 | C16: 正副会長会議 | D16: 緑 太郎 青葉 花子 | E16: 840 | F16: バス:□■～▲○ @210円×2×2人×=840円 | G16: 緑 | H16: 青葉

Sheet 【記入例シート３】自販機
B1: 自動販売機で購入した品目
A3: 領収書 № | B3: 購入日 | C3: 品目・数量 | D3: 金 額 | E3: 自動販売機を使用した理由 | F3: 備 考
E4: （例）近くにｺﾝﾋﾞﾆ等がなかった。急を要していたなど。 | F4: （用途を記載してください。また、会議用の飲料等の場合は、会議の出席者名を記載してください。）
A5: 3-1 | B5: 2021-09-01 | C5: 缶茶・5本 | D5: 600円 | E5: 近くにコンビニ等がなかった。 | F5: 鶴見、神奈川、西、中、南
A6: 3-2 | B6: 10月7日 | C6: 缶茶・5本 | D6: 600円 | E6: 急を要していた。 | F6: 戸塚、栄、泉、瀬谷、鶴見
